bitfinex-derivatives/quotes_SOLF0:USTF0_20250202
["timestamp","ask_amount","ask_price","bid_price","bid_amount"]
[1738523929224,52.91878505,195.92,195.73,43.26348505]
[1738523929424,52.91878505,195.92,195.72,1.02186797]
[1738523929425,43.26348505,195.97,195.77,43.26348505]
[1738523929628,43.26348505,195.97,195.74,1.02176356]
[1738523929629,43.26348505,196.05,195.81,43.26348505]
[1738523929828,43.26348505,196.09,195.89,43.26348505]
[1738523930033,12.6626,196.12,195.96,5.1068]
[1738523930226,5.1054,196.02,195.89,43.26348505]
[1738523930438,43.26348505,196.09,195.96,5.1068]
[1738523930631,12.6626,196.12,195.93,43.26348505]
[1738523930836,43.26348505,196.13,195.93,43.26348505]
[1738523931036,0.03548055,196.04,196.01,0.03570318]
[1738523931430,43.26348505,196.17,195.97,43.26348505]
[1738523931729,0.03874777,196.04,196.01,0.03429075]
[1738523931930,53.15168505,196.21,196.0,43.26348505]
[1738523932134,54.17100108,196.21,196.01,0.03602495]
[1738523932430,54.17100108,196.21,195.94,3.0188]
[1738523932431,1.01931603,196.21,196.08,43.26348505]
[1738523932735,1.01931603,196.21,196.16,43.26348505]
[1738523933339,6.5979,196.39,196.2,43.26348505]
[1738523933535,1.91744838,196.35,196.2,43.26348505]
[1738523933734,1.91744838,196.35,196.1,3.0188]
[1738523933735,0.03574154,196.3,196.16,43.26348505]
[1738523933931,0.03574154,196.3,196.2,43.26348505]
[1738523934235,0.89885913,196.33,196.26,0.03817095]
[1738523934435,0.03442352,196.27,196.26,0.03817095]
[1738523934629,0.03442352,196.27,196.24,43.26348505]
[1738523934833,43.26348505,196.41,196.25,0.03578225]
[1738523935033,0.89949451,196.4,196.25,0.03578225]
[1738523935237,0.89949451,196.39,196.24,43.26348505]
[1738523935435,0.89949451,196.42,196.25,6.2489]
[1738523935627,5.0958,196.39,196.25,6.2489]
[1738523935832,0.89957767,196.38,196.24,43.26348505]
[1738523936135,43.26348505,196.28,196.1,3.0188]
[1738523936436,43.26348505,196.35,195.91,43.26348505]
[1738523936437,43.26348505,196.24,196.17,0.03668229]
[1738523936635,5.1013,196.18,196.11,1.0198358]
[1738523936828,43.26348505,196.2,196.11,1.0198358]
[1738523937031,6.1429,196.23,196.11,1.0198358]
[1738523937442,43.26348505,196.46,196.16,43.26348505]
[1738523937443,43.26348505,196.36,196.16,43.26348505]
[1738523937738,5.0975,196.33,196.17,1.01952388]
[1738523937940,43.26348505,196.4,196.2,43.26348505]
[1738523938246,12.3301,196.45,196.24,0.03389268]
[1738523938544,43.26348505,196.32,196.17,1.01952388]
[1738523938737,5.0999,196.23,196.17,1.01952388]
[1738523938945,43.26348505,196.28,196.17,1.01952388]
[1738523939446,0.02669458,196.24,196.21,0.03564098]
[1738523939642,0.02669458,196.24,196.21,4.098e-05]
[1738523939841,43.29017963,196.24,196.21,4.098e-05]
[1738523940035,5.1001,196.23,196.21,4.098e-05]
[1738523940342,0.02669458,196.24,196.21,4.098e-05]
[1738523940541,5.0999,196.23,196.21,4.098e-05]
[1738523940743,0.02669458,196.24,196.21,4.098e-05]
[1738523941245,6.5111,196.44,196.23,43.26348505]
[1738523941540,5.096,196.38,196.29,5.0982]
[1738523941739,3.1034,196.43,196.23,43.26348505]
[1738523941936,43.26348505,196.29,196.15,0.69761]
[1738523942140,43.26348505,196.25,196.15,0.69761]
[1738523942341,43.26348505,196.35,196.15,0.69761]
[1738523942342,43.26348505,196.21,196.17,2.388e-05]
[1738523942639,0.0356,196.23,196.19,0.03920644]
[1738523943044,43.26348505,196.37,196.19,0.03920644]
[1738523943545,43.26348505,196.29,196.17,2.388e-05]
[1738523943745,43.26348505,196.33,196.17,2.388e-05]
[1738523943945,43.26348505,196.37,196.18,43.26348505]
[1738523944146,5.0965,196.36,196.27,5.0987]
[1738523944346,43.26348505,196.41,196.23,0.03271418]
[1738523944549,43.26348505,196.45,196.26,43.26348505]
[1738523944746,43.26348505,196.45,196.22,43.26348505]
[1738523944947,0.90172306,196.44,196.22,43.26348505]
[1738523945247,0.90172306,196.44,196.34,0.03271348]
[1738523945445,43.26348505,196.41,196.34,0.03271348]
[1738523945648,43.26348505,196.41,196.22,43.26348505]
[1738523945948,43.26348505,196.45,196.36,0.03732899]
[1738523946243,5.0952,196.41,196.33,5.0972]
[1738523946448,43.26348505,196.41,196.19,6.3169]
[1738523946647,43.26348505,196.37,196.19,6.3169]
[1738523947050,43.26348505,196.29,196.28,7.433e-05]
[1738523947250,43.26348505,196.33,196.28,7.433e-05]
[1738523947449,43.26348505,196.33,196.17,2.388e-05]
[1738523947952,5.1002,196.22,196.17,2.388e-05]
[1738523948246,5.1002,196.22,195.93,100.94]
[1738523948247,43.26348505,196.18,195.93,100.94]
[1738523948451,43.26348505,196.13,195.94,49.77748505]
[1738523948652,43.26348505,196.17,195.98,43.26348505]
[1738523948846,43.26348505,196.17,196.04,0.03530172]
[1738523949044,43.26348505,196.26,196.06,43.26348505]
[1738523949351,43.26348505,196.41,196.18,43.26348505]
[1738523949545,43.26348505,196.41,196.22,43.26348505]
[1738523949546,6.586,196.41,196.22,43.26348505]
[1738523949953,43.26348505,196.53,196.3,43.26348505]
[1738523950251,0.90204586,196.52,196.34,43.26348505]
[1738523950451,43.26348505,196.49,196.24,43.26348505]
[1738523950649,48.35878505,196.41,196.4,0.03515623]
[1738523950844,43.26348505,196.41,196.2,43.26348505]
[1738523951051,9.779,196.4,196.2,26.19311741]
[1738523951552,43.26348505,196.37,196.16,43.26348505]
[1738523952046,43.26348505,196.45,196.24,43.26348505]
[1738523952251,43.26348505,196.53,196.32,43.26348505]
[1738523952447,0.90270373,196.52,196.32,43.26348505]
[1738523952652,0.90270373,196.52,196.36,43.26348505]
[1738523952851,9.0304,196.56,196.26,2.9918]
[1738523952852,0.90270373,196.51,196.4,43.26348505]
[1738523953056,0.90270373,196.5,196.4,43.26348505]
[1738523953254,43.26348505,196.65,196.44,43.26348505]
[1738523953450,43.26348505,196.65,196.44,43.29804597]
[1738523953451,4.13216845,196.64,196.44,43.29804597]
[1738523953655,0.90293545,196.63,196.44,43.29804597]
[1738523953950,0.03553241,196.56,196.54,5.0916]
[1738523954153,3.241e-05,196.56,196.54,5.0916]
[1738523954555,0.90293545,196.66,196.58,5.0906]
[1738523954855,44.1664205,196.65,196.52,0.03262151]
[1738523955059,3.2294,196.64,196.46,43.26348505]
[1738523955351,5.9596,196.67,196.46,43.26348505]
[1738523955654,77.5156555,196.81,196.55,43.26348505]
[1738523955853,77.5156555,196.81,196.59,43.26348505]
[1738523956156,77.5156555,196.81,196.65,0.03830904]
[1738523956546,0.90514517,196.77,196.65,0.03830904]
[1738523956751,0.90514517,196.77,196.7,5.0875]
[1738523957052,0.90514517,196.77,196.63,43.26348505]
[1738523957351,0.90514517,196.8,196.69,0.03481683]
[1738523957550,43.26348505,196.75,196.69,0.03481683]
[1738523957851,43.26348505,196.71,196.53,43.26348505]
[1738523958051,0.90514517,196.74,196.53,43.26348505]
[1738523958052,7.07494517,196.74,196.7,0.03468916]
[1738523958251,6.1698,196.74,196.53,43.26348505]
[1738523958451,43.26348505,196.79,196.61,43.26348505]
[1738523958654,0.90511899,196.78,196.65,43.26348505]
[1738523958852,0.90511899,196.77,196.61,43.26348505]
[1738523959051,43.26348505,196.79,196.61,43.26348505]
[1738523959251,43.26348505,196.71,196.49,43.26348505]
[1738523959451,43.26348505,196.67,196.47,12.9195]
[1738523959652,0.03438867,196.72,196.53,43.26348505]
[1738523959953,6.3442,196.74,196.54,1.01760455]
[1738523960156,43.26348505,196.71,196.54,1.01760455]
[1738523960657,43.26348505,196.67,196.54,1.01760455]
[1738523960852,43.26348505,196.71,196.49,43.26348505]
[1738523961059,0.03251699,196.64,196.61,0.03653602]
[1738523961357,0.03251699,196.64,196.49,1.0178635]
[1738523961556,43.26348505,196.63,196.49,1.0178635]
[1738523961952,3.0727,196.66,196.49,1.0178635]
[1738523962259,3.0727,196.66,196.51,43.26348505]
[1738523962560,43.26348505,196.68,196.49,1.0178635]
[1738523962755,0.0330692,196.59,196.56,0.03727517]
[1738523963255,3.0727,196.71,196.49,1.0178635]
[1738523963461,3.0727,196.71,196.54,43.26348505]
[1738523963662,43.26348505,196.76,196.58,43.26348505]
[1738523963958,43.26348505,196.8,196.58,43.26348505]
[1738523964359,43.26348505,196.8,196.67,0.03238568]
[1738523964560,3.553e-05,196.71,196.67,0.03238568]
[1738523964763,0.90483651,196.83,196.66,43.26348505]
[1738523965152,0.90483651,196.83,196.62,43.26348505]
[1738523965356,0.90483651,196.83,196.58,12.9147]
[1738523965357,43.26348505,196.76,196.58,46.52168505]
[1738523965558,43.26348505,196.8,196.62,43.26348505]
[1738523965861,9.0858,196.89,196.66,43.26348505]
[1738523965862,0.03320376,196.69,196.66,43.26348505]
[1738523966057,0.90511751,196.88,196.66,43.26348505]
[1738523966256,0.90511751,196.88,196.71,43.26348505]
[1738523966459,0.90538304,196.87,196.71,43.26348505]
[1738523966858,5.0842,196.84,196.74,5.0864]
[1738523967056,3.0978,196.88,196.67,46.52158505]
[1738523967260,3.0978,196.88,196.77,0.03681969]
[1738523967458,3.0978,196.88,196.77,5.12251969]
[1738523967663,3.0978,196.88,196.77,0.03681969]
[1738523968657,43.26348505,196.81,196.6,43.26348505]
[1738523968854,43.26348505,196.77,196.58,3.2582]
[1738523969060,5.086,196.77,196.69,5.0879]
[1738523969255,43.26348505,196.81,196.6,43.26348505]
[1738523969666,3.0978,196.88,196.58,3.2582]
[1738523969965,3.0978,196.88,196.69,0.03600297]
[1738523970155,43.26348505,196.9,196.72,43.26348505]
[1738523970662,5.0846,196.82,196.73,5.0867]
[1738523970962,43.26348505,196.9,196.68,43.26348505]
[1738523971163,5.0828,196.89,196.77,5.0857]
[1738523971358,43.26348505,196.94,196.76,43.26348505]
[1738523971554,43.26348505,196.94,196.76,0.03284816]
[1738523971754,5.0856,196.78,196.76,0.03284816]
[1738523972065,43.26348505,196.78,196.6,6.0811]
[1738523972257,43.26348505,196.74,196.58,3.2582]
[1738523972462,43.26348505,196.82,196.6,43.26348505]
[1738523972668,9.587,196.85,196.67,0.03412053]
[1738523973063,9.587,196.85,196.64,43.26348505]
[1738523973260,9.587,196.85,196.79,5.0853]
[1738523973467,43.26348505,196.94,196.74,0.03742526]
[1738523973765,5.0825,196.91,196.82,5.0845]
[1738523973967,3.2119,196.93,196.77,43.26348505]
[1738523974267,5.0822,196.91,196.83,5.0841]
[1738523974466,3.2119,196.93,196.85,0.03877982]
[1738523975068,52.78078505,196.98,196.85,0.03877982]
[1738523975570,5.0814,196.95,196.87,5.0832]
[1738523975769,52.78078505,196.98,196.77,43.26348505]
[1738523975972,52.78078505,196.98,196.9,0.03485921]
[1738523976365,52.78078505,196.98,196.78,3.0329]
[1738523976671,2.9711,196.98,196.92,0.03232858]
[1738523977065,43.26348505,197.02,196.81,43.26348505]
[1738523977468,43.26348505,196.98,196.93,0.03484675]
[1738523977668,43.26348505,196.94,196.69,9.4055]
[1738523977869,43.26348505,196.89,196.69,9.4055]
[1738523978167,43.26348505,196.93,196.69,9.4055]
[1738523978361,43.26348505,197.01,196.8,43.26348505]
[1738523978570,5.0794,197.02,196.94,5.0814]
[1738523978866,3.053,197.03,196.84,43.26348505]
[1738523979066,5.171e-05,196.92,196.9,5.0825]
[1738523979274,0.9055135,197.08,196.89,0.03533095]
[1738523979565,43.26348505,197.23,196.89,0.03533095]
[1738523979566,0.9055135,197.07,197.05,5.0785]
[1738523979763,1.35e-05,197.13,197.05,43.26348505]
[1738523979963,81.01777981,197.31,197.09,43.26348505]
[1738523980167,81.01777981,197.31,197.13,43.26348505]
[1738523980368,26.05446097,197.33,197.17,43.26348505]
[1738523980565,26.05446097,197.33,197.2,0.0351408]
[1738523980766,0.89986991,197.32,197.22,5.074]
[1738523980963,0.89986991,197.32,197.21,43.26348505]
[1738523981168,0.89986991,197.32,197.17,43.26348505]
[1738523981366,5.97156991,197.32,197.2,5.0747]
[1738523981669,6.48790203,197.34,197.25,0.0367363]
[1738523982170,43.26348505,197.31,197.14,3.2388]
[1738523982472,5.0733,197.26,197.12,5.0766]
[1738523982674,49.75138708,197.34,197.28,0.0351701]
[1738523982869,3.0549,197.33,197.12,43.26348505]
[1738523983071,5.0726,197.29,197.16,48.33918505]
[1738523983273,3.0549,197.33,197.16,43.26348505]
[1738523983770,43.26348505,197.3,197.12,43.26348505]
[1738523983973,43.26348505,197.26,197.08,43.26348505]
[1738523984274,43.26348505,197.22,197.0,43.26348505]
[1738523984472,3.0549,197.21,197.01,0.92052571]
[1738523984672,3.0549,197.21,197.15,0.03299804]
[1738523984969,6.1359,197.25,197.15,0.03299804]
[1738523985274,43.26348505,197.3,197.12,5.0767]
[1738523985575,0.03353525,197.22,197.18,0.03700632]
[1738523985769,0.03353525,197.22,197.19,5.0749]
[1738523985975,9.3448,197.37,197.2,43.26348505]
[1738523986170,0.90082663,197.36,197.2,43.26348505]
[1738523986878,3.0549,197.37,197.26,5.0731]
[1738523987071,3.0549,197.37,197.2,43.26348505]
[1738523987372,3.0549,197.37,197.26,0.03272197]
[1738523987770,43.26348505,197.42,197.26,0.03272197]
[1738523987972,3.2817,197.44,197.28,43.26348505]
[1738523988267,3.2817,197.44,197.25,3.1968]
[1738523988470,3.2817,197.44,197.34,0.03581852]
[1738523988775,3.1468,197.49,197.34,0.03581852]
[1738523989274,3.1468,197.49,197.31,43.26348505]
[1738523989465,3.1468,197.49,197.4,0.03480022]
[1738523989666,5.0681,197.46,197.4,0.03480022]
[1738523989873,3.1468,197.49,197.4,0.03480022]
[1738523990371,5.0676,197.48,197.4,0.03480022]
[1738523990573,6.2289,197.56,197.4,0.03480022]
[1738523990873,3.0514,197.56,197.4,0.03480022]
[1738523991074,3.0514,197.56,197.39,43.26348505]
[1738523991376,3.0514,197.56,197.46,0.03886776]
[1738523991579,6.3365,197.61,197.46,0.03886776]
[1738523992078,5.0654,197.57,197.47,5.0677]
[1738523992369,3.2382,197.65,197.52,0.03661062]
[1738523992570,5.0641,197.62,197.52,5.10301062]
[1738523992769,3.2382,197.65,197.47,43.26348505]
[1738523993171,3.2382,197.65,197.55,0.03504398]
[1738523993473,3.0038,197.71,197.55,0.03504398]
[1738523993474,46.26728505,197.71,197.55,0.03504398]
[1738523993670,43.26348505,197.79,197.59,43.26348505]
[1738523993875,3.2382,197.79,197.63,43.26348505]
[1738523994075,0.90350998,197.78,197.59,43.26348505]
[1738523994370,43.26348505,197.71,197.52,43.26348505]
[1738523994573,3.2382,197.79,197.67,0.03474648]
[1738523994773,0.90373459,197.78,197.67,0.03474648]
[1738523994977,3.2382,197.79,197.6,43.26348505]
[1738523995370,5.0597,197.79,197.71,5.09628835]
[1738523995570,3.0038,197.86,197.71,5.09628835]
[1738523995773,0.90394715,197.85,197.71,0.03478835]
[1738523995975,0.90394715,197.85,197.68,43.26348505]
[1738523996174,0.90394715,197.85,197.76,0.03246235]
[1738523996369,3.0038,197.86,197.76,0.03246235]
[1738523996775,43.26348505,197.89,197.76,0.03246235]
[1738523996971,0.90402334,197.88,197.78,5.0598]
[1738523997180,2.9994,197.9,197.78,5.0598]
[1738523997581,5.0581,197.85,197.81,0.0353203]
[1738523998180,129.19275918,198.09,197.84,129.79045515]
[1738523998384,71.54802709,198.12,198.08,43.26348505]
[1738523998579,71.54802709,198.12,198.11,43.26348505]
[1738523998776,6.43924297,198.24,198.11,43.26348505]
[1738523998980,6.43924297,198.24,198.23,43.26348505]
[1738523999280,6.43924297,198.24,198.22,86.5269701]
[1738523999486,17.83987189,198.25,198.22,43.26348505]
[1738523999677,7.189e-05,198.25,198.24,5.0481]
[1738523999871,43.19731568,198.26,198.24,5.0481]
[1738524000180,9.2234,198.45,198.24,123.48976737]
[1738524000377,43.26348505,198.41,198.24,123.48976737]
[1738524001080,43.26348505,198.44,198.31,0.03870645]
[1738524001274,48.30858505,198.36,198.35,329.72938099]
[1738524001583,48.30858505,198.36,198.35,247.22688099]
[1738524001877,43.26348505,198.36,198.25,30.87244184]
[1738524002083,43.26348505,198.31,198.25,30.87244184]
[1738524002380,43.26348505,198.44,198.24,92.61732553]
[1738524002381,43.26348505,198.27,198.24,66.41252553]
[1738524002575,5.0476,198.26,198.24,66.41252553]
[1738524002781,43.26348505,198.35,198.24,66.41252553]
[1738524003082,43.26348505,198.44,198.24,66.41252553]
[1738524003277,1.00791211,198.43,198.26,43.26348505]
[1738524003479,1.00791211,198.43,198.28,0.03359957]
[1738524003682,5.0451,198.37,198.28,0.03359957]
[1738524003875,100.16,198.56,198.25,3.2149]
[1738524003876,43.26348505,198.4,198.25,3.2149]
[1738524004077,43.26348505,198.36,198.24,66.41252553]
[1738524004277,43.26348505,198.32,198.24,66.41252553]
[1738524004480,43.26348505,198.28,198.24,21.93636823]
[1738524004684,43.26348505,198.28,198.26,0.03718216]
[1738524004983,43.26348505,198.27,198.17,253.96468982]
[1738524005179,43.26348505,198.18,198.17,222.64928982]
[1738524005380,43.26348505,198.18,198.17,15.62899523]
[1738524005778,43.26348505,198.18,197.92,43.26348505]
[1738524005978,43.26348505,198.11,197.92,43.26348505]
[1738524006178,43.26348505,198.07,197.91,3.2149]
[1738524006378,43.26348505,198.11,197.91,3.2149]
[1738524006586,43.26348505,198.16,197.96,43.26348505]
[1738524006787,6.96,198.2,198.0,0.03562487]
[1738524006788,43.26348505,198.08,198.0,0.03562487]
[1738524007089,43.26348505,198.04,197.8,3.2662]
[1738524007289,5.0565,197.92,197.8,9.7021]
[1738524007585,43.26348505,197.98,197.8,9.7021]
[1738524008082,43.26348505,198.11,197.87,43.26348505]
[1738524008289,43.26348505,198.11,197.87,43.30108524]
[1738524008484,43.26348505,198.11,197.88,1.01071356]
[1738524008679,75.59107078,197.94,197.88,1.01071356]
[1738524009179,75.59107078,197.94,197.89,0.03217542]
[1738524009588,0.03601502,197.93,197.89,0.03217542]
[1738524010190,157.54163398,197.9,197.89,0.03217542]
[1738524010392,157.54163398,197.9,197.74,43.26348505]
[1738524010685,43.26348505,197.83,197.75,1.011378]
[1738524010985,43.26348505,197.79,197.45,43.26348505]
[1738524011192,43.26348505,197.74,197.46,12.6546]
[1738524011688,43.26348505,197.66,197.48,43.26348505]
[1738524011989,43.26348505,197.66,197.46,12.6546]
[1738524011990,119.36010173,197.58,197.46,6.1976]
[1738524012189,43.26348505,197.54,197.35,6.457]
[1738524012390,43.26348505,197.54,197.35,3.2272]
[1738524012589,43.26348505,197.5,197.35,3.2272]
[1738524012792,43.26348505,197.46,197.43,0.03366326]
[1738524012985,43.26348505,197.44,197.26,6.2039]
[1738524013288,43.26348505,197.44,197.26,49.46738505]
[1738524013494,43.26348505,197.48,197.26,49.46738505]
[1738524013686,6.8,197.52,197.37,5.0702]
[1738524013992,6.8,197.52,197.34,43.26348505]
[1738524014286,158.56776849,197.46,197.44,5.0684]
[1738524014693,128.14591809,197.46,197.44,5.0684]
[1738524014891,79.86941809,197.46,197.44,5.0684]
[1738524015094,53.98387476,197.73,197.52,5.0664]
[1738524015292,43.26348505,197.71,197.48,43.26348505]
[1738524015491,0.0321392,197.61,197.48,43.26348505]
[1738524015686,0.0321392,197.61,197.44,43.26348505]
[1738524015993,43.26348505,197.67,197.58,0.0344741]
[1738524016195,3.202,197.72,197.58,0.0344741]
[1738524016394,47.18387476,197.73,197.56,43.26348505]
[1738524016589,47.18387476,197.73,197.63,5.0636]
[1738524016787,118.08689564,197.66,197.63,0.03774108]
[1738524017188,110.39719564,197.66,197.57,43.26348505]
[1738524017491,0.03879835,197.67,197.65,43.26348505]
[1738524017688,118.50466167,197.69,197.66,6.1369]
[1738524017990,43.26348505,197.97,197.67,43.26348505]
[1738524018195,43.26348505,197.97,197.66,6.1369]
[1738524018196,1.91561261,197.96,197.81,43.26348505]
[1738524018498,1.01035615,197.95,197.84,43.26348505]
[1738524018687,5.615e-05,197.95,197.92,43.26348505]
[1738524018993,0.03413424,197.91,197.88,43.30140746]
[1738524019194,5.615e-05,197.95,197.88,43.30140746]
[1738524019491,43.26348505,197.98,197.88,0.03792241]
[1738524019695,1.01025407,197.97,197.88,0.03792241]
[1738524019989,1.01025407,197.97,197.78,43.26348505]
[1738524020191,43.26348505,197.9,197.7,43.26348505]
[1738524020488,43.26348505,197.9,197.74,5.0608]
[1738524020688,0.03379216,197.89,197.86,0.03370664]
[1738524020893,3.0851,197.96,197.78,43.26348505]
[1738524021085,3.0851,197.96,197.84,5.0582]
[1738524021288,0.03198229,197.89,197.86,0.03593683]
[1738524021495,0.03198229,197.89,197.86,43.29942188]
[1738524021695,3.0261,198.09,197.86,43.29942188]
[1738524021896,3.0261,198.09,197.91,43.26348505]
[1738524022095,3.0261,198.09,197.94,5.0556]
[1738524022295,3.0261,198.09,197.91,43.26348505]
[1738524022498,6.3847,198.1,197.91,43.26348505]
[1738524022692,6.3847,198.1,197.94,5.0556]
[1738524023099,0.0329847,198.02,197.99,0.03837001]
[1738524023594,52.20108505,198.2,197.99,43.30185506]
[1738524023992,52.20108505,198.2,198.03,43.26348505]
[1738524024201,5.9394,198.2,198.03,43.26348505]
[1738524024400,49.20288505,198.2,197.99,43.26348505]
[1738524024597,43.26348505,198.16,197.96,3.1922]
[1738524024898,0.03383889,198.11,198.08,80.54927221]
[1738524025201,0.03383889,198.11,198.08,80.51452084]
[1738524025493,5.9394,198.2,198.07,382.44397402]
[1738524025699,0.03753849,198.11,198.08,0.03339936]
[1738524026298,43.26348505,198.12,198.07,377.52077402]
[1738524026599,0.03796165,198.11,198.07,338.13877402]
[1738524026794,43.26348505,198.17,198.09,66.31462885]
[1738524027100,48.31228505,198.22,198.1,81.49306163]
[1738524027300,43.26348505,198.22,198.1,81.49306163]
[1738524027495,43.26348505,198.14,198.1,81.49306163]
[1738524027695,100.12,198.4,198.08,66.3493556]
[1738524027696,43.26348505,198.18,198.08,37.89407363]
[1738524027997,43.26348505,198.26,198.08,37.89407363]
[1738524028198,5.0485,198.23,198.1,0.03384558]
[1738524028403,43.26348505,198.26,198.1,0.03384558]
[1738524028598,43.26348505,198.26,198.09,27.42212409]
[1738524028798,43.26348505,198.22,198.16,0.03589822]
[1738524029104,43.26348505,198.18,198.09,27.42212409]
[1738524029296,43.26348505,198.14,198.09,27.42212409]
[1738524029500,43.26348505,198.1,198.08,26.88469772]
[1738524029700,5.0525,198.07,198.06,71.09076163]
[1738524029900,6.52,198.15,198.06,71.09076163]
[1738524029901,43.26348505,198.15,198.06,71.09076163]
[1738524030104,43.26348505,198.19,198.06,71.09076163]
[1738524030304,43.26348505,198.23,198.06,71.09076163]
[1738524030615,0.03546121,198.12,198.09,0.03756604]
[1738524030802,5.0515,198.11,198.09,0.03756604]
[1738524031196,43.26348505,198.22,198.01,43.26348505]
[1738524031398,0.03606757,198.12,198.01,55.85798505]
[1738524031598,0.03606757,198.12,198.08,0.03729553]
[1738524031806,43.26348505,198.22,198.08,0.03729553]
[1738524032013,43.26348505,198.26,198.08,0.03729553]
[1738524032213,43.26348505,198.26,198.05,43.26348505]
[1738524032214,43.26348505,198.18,198.01,55.85798505]
[1738524032911,43.26348505,198.14,198.02,5.0536]
[1738524033109,43.26348505,198.22,198.01,9.4658]
[1738524033110,43.26348505,198.1,198.01,9.4658]
[1738524033317,5.0522,198.09,198.08,0.03648711]
[1738524033510,86.5269701,198.11,197.9,9.4658]
[1738524033714,43.26348505,198.11,197.9,9.4658]
[1738524034013,43.26348505,198.19,197.97,43.26348505]
[1738524034214,43.26348505,198.19,198.01,43.26348505]
[1738524034413,43.26348505,198.19,197.97,43.26348505]
[1738524034714,0.03842575,198.12,198.08,0.03770495]
[1738524034913,43.26348505,198.11,198.08,0.03770495]
[1738524035112,86.5269701,198.11,197.9,9.4658]
[1738524035315,43.26348505,198.03,197.9,9.4658]
[1738524035519,43.26348505,197.99,197.9,6.3208]
[1738524035715,43.26348505,197.99,197.82,3.0489]
[1738524036018,43.26348505,197.91,197.82,3.0489]
[1738524036316,43.26348505,197.87,197.73,6.4296]
[1738524036717,5.0593,197.81,197.69,8.1108]
[1738524036913,5.0593,197.81,197.63,43.26348505]
[1738524036914,43.26348505,197.75,197.64,6.2146]
[1738524037116,5.0619,197.71,197.59,5.0646]
[1738524037419,43.26348505,197.71,197.56,6.2146]
[1738524037719,5.0632,197.65,197.63,0.03445315]
[1738524037921,0.03463987,197.67,197.63,0.03445315]
[1738524039109,43.29812492,197.67,197.63,0.03445315]
[1738524039316,43.29812492,197.67,197.51,6.3086]
[1738524039517,0.03463987,197.67,197.51,6.3086]
[1738524039817,43.26348505,197.75,197.54,43.26348505]
[1738524040012,43.26348505,197.71,197.51,6.3086]
[1738524040213,43.26348505,197.75,197.54,43.26348505]
[1738524040421,5.0613,197.73,197.62,5.0637]
[1738524040621,143.32348505,197.79,197.58,43.26348505]
[1738524040817,43.26348505,197.83,197.62,43.26348505]
[1738524041421,43.26348505,197.83,197.59,6.5565]
[1738524041622,43.26348505,197.83,197.62,43.26348505]
[1738524041919,43.26348505,197.79,197.59,6.5565]
[1738524042117,43.26348505,197.71,197.59,6.5565]
[1738524042522,5.0629,197.66,197.59,6.5565]
[1738524042724,43.26348505,197.71,197.59,6.5565]
[1738524043125,0.03392185,197.67,197.63,0.03208958]
[1738524043328,43.26348505,197.65,197.63,8.958e-05]
[1738524043721,43.26348505,197.65,197.46,6.5001]
[1738524043924,43.26348505,197.55,197.46,6.5001]
[1738524044225,5.0662,197.54,197.46,6.5001]
[1738524044424,43.26348505,197.55,197.46,6.5001]
[1738524044729,0.0378926,197.52,197.49,0.03822504]
[1738524044930,43.26348505,197.51,197.38,6.5001]
[1738524045223,43.26348505,197.48,197.33,82.188573]
[1738524045419,5.068,197.47,197.33,82.188573]
[1738524045620,43.26348505,197.48,197.33,82.188573]
[1738524045830,43.26348505,197.36,197.33,82.188573]
[1738524046127,5.0711,197.35,197.33,74.043973]
[1738524046318,49.50348505,197.36,197.27,136.20835917]
[1738524046519,5.0709,197.35,197.33,0.03826944]
[1738524046720,0.03375122,197.36,197.33,0.03826944]
[1738524047325,43.26348505,197.56,197.33,0.03826944]
[1738524047326,43.26348505,197.48,197.33,0.03826944]
[1738524047529,5.0669,197.51,197.39,5.0697]
[1738524047729,43.26348505,197.44,197.28,9.365]
[1738524047928,43.26348505,197.52,197.32,43.26348505]
[1738524048630,43.26348505,197.56,197.48,5.0673]
[1738524048927,43.26348505,197.6,197.4,43.2986332]
[1738524049129,43.26348505,197.64,197.44,43.26348505]
[1738524049328,0.0370694,197.54,197.44,43.26348505]
[1738524049724,43.26348505,197.64,197.52,0.0334459]
[1738524049921,43.26348505,197.67,197.52,0.0334459]
[1738524050121,43.26348505,197.67,197.48,43.26348505]
[1738524050330,43.26348505,197.61,197.45,9.3677]
[1738524050728,43.26348505,197.71,197.48,43.26348505]
[1738524050926,43.26348505,197.71,197.52,43.26348505]
[1738524051327,43.26348505,197.75,197.56,43.26348505]
[1738524051532,43.26348505,197.83,197.6,43.26348505]
[1738524051833,43.26348505,197.89,197.71,5.0615]
[1738524052032,0.90621891,197.88,197.65,43.26348505]
[1738524052228,6.16,197.93,197.73,43.26348505]
[1738524052229,49.42348505,197.93,197.73,43.26348505]
[1738524052433,0.90649546,197.92,197.73,43.26348505]
[1738524052634,49.42348505,197.93,197.75,0.03533805]
[1738524052835,1.01050929,197.92,197.77,43.26348505]